bitfinex/quotes_SOLUSD_20241122
["timestamp","ask_amount","ask_price","bid_price","bid_amount"]
[1732280627091,23.776884,259.03,258.97,2.8861]
[1732280627092,23.776884,259.01,258.97,2.8861]
[1732280627472,23.776884,259.01,259.0,2.5]
[1732280628788,23.776884,259.01,259.0,2.8861]
[1732280628975,18.5769898,259.1,259.06,2.5]
[1732280629367,18.5769898,259.12,259.09,2.5]
[1732280629590,18.5769898,259.18,259.13,2.5]
[1732280630486,18.5769898,259.2,259.15,2.5]
[1732280630690,23.776884,259.19,259.15,2.5]
[1732280630890,18.5769898,259.2,259.15,2.8858]
[1732280631687,18.5769898,259.18,259.15,2.8858]
[1732280631884,18.5769898,259.18,259.15,0.3858]
[1732280632389,23.776884,259.17,259.13,3.4647]
[1732280632694,18.5769898,259.16,259.13,3.8506]
[1732280632872,23.776884,259.17,259.13,3.8506]
[1732280633072,23.776884,259.17,259.15,2.5]
[1732280634298,23.776884,259.17,259.13,3.8506]
[1732280634986,23.776884,259.17,259.13,3.4647]
[1732280635190,23.776884,259.15,259.13,0.9647]
[1732280635502,23.776884,259.15,259.11,2.5]
[1732280636002,18.5769898,259.14,259.11,2.5]
[1732280636502,18.5769898,259.14,259.11,2.8859]
[1732280636880,2.5,259.25,259.11,2.8859]
[1732280636881,23.776884,259.17,259.15,2.5]
[1732280637602,23.776884,259.17,259.11,1.3507]
[1732280637775,18.5769898,259.16,259.11,1.3507]
[1732280638104,18.5769898,259.18,259.15,2.5]
[1732280638697,42.3538738,259.18,259.17,2.5]
[1732280639009,18.5769898,259.18,259.17,2.5]
[1732280639292,18.5769898,259.2,259.17,2.5]
[1732280640102,18.5769898,259.2,259.18,0.3858]
[1732280641204,42.3538738,259.22,259.21,2.5]
[1732280641773,22.2886,259.31,259.18,1.3503]
[1732280641774,18.5769898,259.24,259.23,2.5]
[1732280642096,18.5769898,259.35,259.25,2.5]
[1732280642097,18.5769898,259.28,259.25,2.5]
[1732280642400,18.5769898,259.28,259.25,2.8857]
[1732280642988,18.5769898,259.28,259.25,2.5]
[1732280643206,3.8563,259.32,259.25,2.5]
[1732280643207,18.5769898,259.26,259.25,2.5]
[1732280644088,23.776884,259.27,259.25,2.8857]
[1732280644291,18.5769898,259.28,259.25,2.5]
[1732280645186,18.5769898,259.28,259.23,3.4643]
[1732280645488,23.776884,259.3,259.29,2.5]
[1732280645809,18.5769898,259.34,259.33,2.5]
[1732280646306,18.5769898,259.36,259.33,2.5]
[1732280646482,18.5769898,259.36,259.33,2.8856]
[1732280646797,18.5769898,259.36,259.33,0.3856]
[1732280646995,18.5769898,259.36,259.33,2.8856]
[1732280647192,18.5769898,259.36,259.26,17.0425898]
[1732280647383,18.5769898,259.38,259.28,15.7367]
[1732280647702,18.5769898,259.36,259.28,15.7367]
[1732280647997,18.5769898,259.32,259.28,15.7367]
[1732280648206,18.5769898,259.32,259.22,36.0526898]
[1732280648402,18.5769898,259.32,259.26,0.9642]
[1732280648594,18.5769898,259.3,259.26,0.9642]
[1732280648791,18.5769898,259.32,259.26,0.9642]
[1732280650414,18.5769898,259.3,259.23,0.3857]
[1732280650619,18.5769898,259.29,259.22,15.9326]
[1732280650808,18.5769898,259.25,259.13,1.3506]
[1732280651114,18.5769898,259.15,259.05,18.5769898]
[1732280651292,18.5769898,259.15,259.04,15.1673]
[1732280651293,18.5769898,259.17,259.07,18.5769898]
[1732280651715,18.5769898,259.15,259.05,18.5769898]
[1732280652213,18.5769898,259.13,259.06,1.351]
[1732280652709,18.5769898,259.17,259.06,1.351]
[1732280653026,18.5769898,259.19,259.08,18.5769898]
[1732280653696,18.5769898,259.21,259.1,18.5769898]
[1732280653892,18.5769898,259.21,259.11,1.3507]
[1732280654095,18.5769898,259.13,259.04,15.1673]
[1732280654400,18.5769898,259.05,258.96,21.7678]
[1732280654601,18.5769898,259.09,258.96,21.7678]
[1732280654602,18.5769898,259.02,258.96,21.7678]
[1732280654817,18.5769898,259.04,258.96,21.7678]
[1732280655323,18.5769898,259.06,259.0,0.9652]
[1732280656297,18.5769898,259.02,259.0,0.9652]
[1732280656614,18.5769898,259.04,259.0,0.9652]
[1732280657216,18.5769898,259.06,259.0,0.9652]
[1732280657411,18.5769898,259.04,259.0,0.9652]
[1732280657909,18.5769898,259.06,259.0,0.9652]
[1732280659637,18.5769898,259.1,259.01,18.5769898]
[1732280659917,18.5769898,259.1,259.0,0.9652]
[1732280660493,18.5769898,259.1,259.0,1.3513]
[1732280660694,18.5769898,259.12,259.01,18.5769898]
[1732280660900,3.8571,259.26,259.11,18.5769898]
[1732280661101,3.8571,259.26,259.09,18.5769898]
[1732280661102,18.5769898,259.2,259.09,18.5769898]
[1732280661300,18.5769898,259.16,259.07,18.5769898]
[1732280661808,18.5769898,259.16,259.08,1.3508]
[1732280662204,18.5769898,259.18,259.08,1.3508]
[1732280662410,18.5769898,259.16,259.08,1.3508]
[1732280663400,18.5769898,259.18,259.08,1.3508]
[1732280666105,18.5769898,259.2,259.09,18.5769898]
[1732280666414,18.5769898,259.2,259.11,18.5769898]
[1732280667029,18.5769898,259.18,259.1,16.1669]
[1732280668207,18.5769898,259.18,259.11,1.3507]
[1732280668614,18.5769898,259.14,259.06,0.965]
[1732280670321,18.5769898,259.16,259.07,18.5769898]
[1732280670710,18.5769898,259.12,259.06,0.965]
[1732280672623,18.5769898,259.1,259.06,0.965]
[1732280673426,18.5769898,259.13,259.06,0.965]
[1732280675809,18.5769898,259.11,259.05,2.7021]
[1732280676048,18.5769898,259.11,259.05,1.9301]
[1732280676323,18.5769898,259.09,259.05,1.9301]
[1732280676935,18.5769898,259.09,259.05,2.7021]
[1732280677132,18.5769898,259.09,259.05,1.9301]
[1732280677306,18.5769898,259.07,259.0,2.7026]
[1732280677512,18.5769898,259.05,259.0,2.7026]
[1732280677923,18.5769898,259.03,258.98,15.793]
[1732280678238,18.5769898,259.01,258.96,0.7723]
[1732280678421,18.5769898,259.01,258.95,1.9308]
[1732280678620,18.5769898,259.09,258.95,1.9308]
[1732280678621,11.61117173,258.99,258.95,1.9308]
[1732280678818,11.61117173,258.99,258.79,4.49097732]
[1732280678819,11.61117173,258.97,258.88,11.61117173]
[1732280679037,2.5,259.08,258.9,1.9312]
[1732280679038,11.61117173,258.95,258.9,1.9312]
[1732280679729,11.61117173,258.93,258.9,1.9312]
[1732280679914,11.61117173,258.93,258.87,0.7725]
[1732280680118,11.61117173,258.89,258.86,15.4479]
[1732280680430,11.61117173,258.89,258.85,1.9315]
[1732280680615,11.61117173,258.87,258.85,1.9315]
[1732280680820,18.59535431,258.89,258.85,1.9315]
[1732280681326,18.59535431,258.87,258.81,0.7727]
[1732280681638,18.59535431,258.83,258.79,1.932]
[1732280682911,18.59535431,258.81,258.79,1.932]
[1732280683106,18.59535431,258.81,258.75,0.7729]
[1732280683330,18.59535431,258.78,258.75,0.7729]
[1732280683565,18.59535431,258.78,258.73,8.2105]
[1732280683730,18.59535431,258.76,258.73,2.7053]
[1732280684233,18.59535431,258.8,258.73,2.7053]
[1732280684608,18.59535431,258.78,258.73,2.7053]
[1732280685024,18.59535431,258.8,258.73,2.7053]
[1732280685616,18.59535431,258.78,258.73,2.7053]
[1732280686054,18.59535431,258.76,258.73,1.9324]
[1732280686735,18.59535431,258.76,258.71,0.773]
[1732280687526,18.59535431,258.76,258.69,0.7731]
[1732280688433,18.59535431,258.74,258.69,0.7731]
[1732280688760,18.59535431,258.72,258.68,1.9328]
[1732280689822,18.59535431,258.7,258.65,17.2171]
[1732280690024,18.59535431,258.7,258.65,0.7732]
[1732280690322,18.59535431,258.72,258.65,2.7063]
[1732280691124,18.59535431,258.74,258.65,2.7063]
[1732280691425,18.59535431,258.74,258.6,0.57985542]
[1732280691426,18.59535431,258.74,258.67,2.706]
[1732280691622,18.59535431,258.72,258.67,2.706]
[1732280691841,18.59535431,258.74,258.67,2.706]
[1732280692229,18.59535431,258.76,258.67,2.706]
[1732280693153,18.59535431,258.76,258.68,18.59535431]
[1732280693334,18.59535431,258.78,258.68,18.59535431]
[1732280693528,18.59535431,258.78,258.69,2.7059]
[1732280693862,18.59535431,258.78,258.7,41.15135431]
[1732280694348,18.59535431,258.78,258.7,22.556]
[1732280694532,18.59535431,258.76,258.7,16.0723]
[1732280694733,18.59535431,258.72,258.65,2.7063]
[1732280695354,18.59535431,258.74,258.66,18.59535431]
[1732280695530,23.776884,258.77,258.64,21.6259]
[1732280695531,18.59535431,258.72,258.67,1.9329]
[1732280696726,18.59535431,258.7,258.65,0.7732]
[1732280697329,18.59535431,258.72,258.65,2.7063]
[1732280697528,23.776884,258.73,258.65,2.7063]
[1732280698335,18.59535431,258.74,258.65,2.7063]
[1732280698854,3.8646,258.76,258.68,18.59535431]
[1732280698855,18.59535431,258.76,258.68,18.59535431]
[1732280699663,18.59535431,258.76,258.69,2.7059]
[1732280700343,18.59535431,258.74,258.69,2.7059]
[1732280700947,18.59535431,258.74,258.69,1.9328]
[1732280701158,18.59535431,258.74,258.69,2.7059]
[1732280701529,23.8636,258.82,258.69,1.9328]
[1732280701730,18.59535431,258.75,258.69,1.9328]
[1732280702750,11.63382163,258.74,258.69,1.9328]
[1732280703934,11.63382163,258.76,258.69,1.9328]
[1732280704661,23.776884,258.75,258.69,1.9328]
[1732280705353,11.63382163,258.78,258.69,1.9328]
[1732280705543,11.63382163,258.76,258.69,1.9328]
[1732280708463,11.63382163,258.84,258.74,11.63382163]
[1732280708669,11.63382163,258.78,258.69,2.7059]
[1732280708832,3.8634,258.84,258.69,2.7059]
[1732280708833,11.63382163,258.76,258.69,2.7059]
[1732280710535,11.63382163,258.83,258.69,1.9328]
[1732280710536,11.63382163,258.72,258.69,1.9328]
[1732280710732,23.776884,258.82,258.65,0.7732]
[1732280710733,11.63382163,258.7,258.65,0.7732]
[1732280710939,11.63382163,258.68,258.65,0.7732]
[1732280711369,11.63382163,258.68,258.64,17.3253]
[1732280711561,11.63382163,258.68,258.64,1.9331]
[1732280711742,11.63382163,258.66,258.59,2.7069]
[1732280711957,11.63382163,258.64,258.59,2.7069]
[1732280712139,11.63382163,258.62,258.59,1.9335]
[1732280712346,11.63382163,258.6,258.56,0.7734]
[1732280712650,11.63382163,258.58,258.53,1.9339]
[1732280712843,11.63382163,258.55,258.53,1.9339]
[1732280713238,11.63382163,258.55,258.44,15.0072]
[1732280713458,3.8668,258.62,258.44,15.0072]
[1732280713459,11.63382163,258.5,258.47,1.9344]
[1732280713944,3.8663,258.65,258.48,11.63382163]
[1732280714258,11.63382163,258.56,258.47,1.9344]
[1732280714654,11.63382163,258.56,258.48,11.63382163]
[1732280715239,11.63382163,258.6,258.5,11.63382163]
[1732280715453,11.63382163,258.62,258.52,11.63382163]
[1732280715673,11.63382163,258.6,258.52,11.63382163]
[1732280716249,11.63382163,258.62,258.54,11.63382163]
[1732280716445,11.63382163,258.62,258.52,11.63382163]
[1732280716649,11.63382163,258.62,258.53,21.6831]
[1732280716867,11.63382163,258.62,258.54,2.7074]
[1732280717370,11.63382163,258.58,258.54,2.7074]
[1732280717578,11.63382163,258.6,258.54,2.7074]
[1732280717866,11.63382163,258.62,258.54,2.7074]
[1732280718248,11.63382163,258.6,258.54,2.7074]
[1732280718471,11.63382163,258.58,258.54,2.7074]
[1732280718645,3.8656,258.69,258.52,0.7736]
[1732280718646,11.63382163,258.56,258.52,0.7736]
[1732280718963,11.63382163,258.54,258.49,1.9343]
[1732280720473,11.63382163,258.56,258.49,1.9343]
[1732280723278,27.643884,258.6,258.49,1.9343]
[1732280723279,11.63382163,258.54,258.49,1.9343]
[1732280723656,11.63382163,258.52,258.49,1.9343]
[1732280724158,11.63382163,258.52,258.47,0.7737]
[1732280724554,11.63382163,258.5,258.47,0.7737]
[1732280724754,11.63382163,258.48,258.45,0.7738]
[1732280725351,11.63382163,258.48,258.44,1.9346]
[1732280725580,11.63382163,258.48,258.39,2.709]
[1732280725948,11.63382163,258.48,258.39,18.21292163]
[1732280726156,11.63382163,258.52,258.43,11.63382163]
[1732280726354,23.776884,258.51,258.43,11.63382163]
[1732280726865,23.776884,258.51,258.41,11.63382163]
[1732280727055,11.63382163,258.5,258.41,11.63382163]
[1732280727259,11.63382163,258.5,258.42,2.7087]
[1732280727654,23.776884,258.49,258.42,2.7087]
[1732280727854,11.63382163,258.48,258.42,2.7087]
[1732280728600,22.322,258.64,258.42,2.7087]
[1732280728775,11.63382163,258.52,258.42,6.5783]
[1732280729278,11.63382163,258.5,258.42,6.5783]
[1732280729854,11.63382163,258.57,258.42,6.5783]
[1732280729855,11.63382163,258.48,258.42,6.5783]
[1732280730063,11.63382163,258.52,258.42,6.5783]
[1732280730264,20.0,258.63,258.42,6.5783]
[1732280730265,11.63382163,258.5,258.42,6.5783]
[1732280730449,11.63382163,258.48,258.42,2.7087]
[1732280730863,27.644284,258.57,258.42,2.7087]
[1732280731070,11.63382163,258.46,258.42,2.7087]
[1732280731271,11.63382163,258.46,258.42,1.9348]
[1732280731571,11.63382163,258.44,258.42,1.9348]
[1732280733055,11.63382163,258.44,258.36,3.8705]
[1732280733056,11.63382163,258.44,258.37,2.7091]
[1732280733268,11.63382163,258.38,258.32,2.7097]
[1732280733486,11.63382163,258.36,258.32,2.7097]
[1732280736479,11.63382163,258.36,258.32,1.9355]
[1732280737269,11.63382163,258.34,258.32,1.9355]
[1732280737778,11.63382163,258.34,258.3,0.7742]
[1732280737953,11.63382163,258.36,258.3,2.7099]
[1732280738380,11.63382163,258.36,258.3,1.9357]
[1732280738759,2.5,258.47,258.31,11.63382163]
[1732280738966,11.63382163,258.46,258.37,11.63382163]
[1732280739167,11.63382163,258.48,258.39,11.63382163]
[1732280740461,11.63382163,258.48,258.37,11.63382163]
[1732280741177,11.63382163,258.46,258.37,11.63382163]
[1732280741615,23.776884,258.43,258.35,2.7094]
[1732280741890,11.63382163,258.42,258.35,2.7094]
[1732280742183,11.63382163,258.4,258.35,2.7094]
[1732280743158,23.776884,258.39,258.35,2.7094]
[1732280744166,23.776884,258.39,258.35,1.9353]
[1732280744569,23.776884,258.41,258.35,1.9353]
[1732280744872,11.63382163,258.44,258.35,13.56912163]
[1732280745182,22.5831,258.59,258.37,11.63382163]
[1732280745356,11.633822,258.56,258.43,11.63382163]
[1732280745561,11.63382163,258.5,258.38,22.4071]
[1732280745770,11.63382163,258.46,258.38,22.4071]
[1732280746284,11.63382163,258.39,258.29,0.7743]
[1732280746491,6.1671,258.41,258.23,7.72093281]
[1732280746492,11.63382163,258.32,258.23,7.72093281]
[1732280746691,11.63382163,258.3,258.23,7.72093281]
[1732280747183,23.776884,258.29,258.23,7.72093281]
[1732280747375,11.63382163,258.28,258.22,2.7108]
[1732280747785,23.776884,258.29,258.22,2.7108]
[1732280747970,23.776884,258.31,258.23,11.63382163]
[1732280748174,11.63382163,258.32,258.23,11.63382163]
[1732280748492,23.776884,258.31,258.24,2.7105]
[1732280751110,23.776884,258.29,258.24,2.7105]
[1732280751592,23.776884,258.27,258.24,2.7105]
[1732280752092,23.776884,258.31,258.24,2.7105]
[1732280752382,23.776884,258.31,258.24,1.9361]
[1732280753195,11.63382163,258.3,258.24,1.9361]
[1732280753571,23.776884,258.29,258.24,1.9361]
[1732280754990,23.776884,258.27,258.24,1.9361]
[1732280757677,11.54,258.47,258.24,1.9361]
[1732280757678,23.776884,258.29,258.24,1.9361]
[1732280757878,11.63382163,258.34,258.24,1.9361]
[1732280758073,11.63382163,258.32,258.24,1.9361]
[1732280758391,11.63382163,258.32,258.23,11.63382163]
[1732280759486,23.776884,258.31,258.24,6.5828]
[1732280759794,11.63382163,258.36,258.27,11.63382163]
[1732280759985,5.0,258.5,258.25,6.6204]
[1732280759986,11.63382163,258.42,258.33,11.63382163]
[1732280760188,11.63382163,258.42,258.25,7.20109099]
[1732280760189,11.63382163,258.44,258.35,11.63382163]
[1732280760378,11.63382163,258.44,258.36,16.2143]
[1732280760893,11.63382163,258.42,258.36,16.2143]
[1732280761202,11.63382163,258.42,258.37,2.7092]
[1732280761382,11.63382163,258.44,258.37,2.7092]
[1732280762194,11.63382163,258.46,258.37,6.5796]
[1732280762790,11.63382163,258.48,258.38,11.63382163]
[1732280763297,11.63382163,258.57,258.4,11.63382163]
[1732280763298,11.63382163,258.5,258.4,11.63382163]
[1732280763482,2.5,258.64,258.39,12.9733]
[1732280763483,11.63382163,258.52,258.44,11.63382163]
[1732280763689,11.63382163,258.54,258.44,11.63382163]
[1732280763899,11.63382163,258.5,258.4,31.63382163]
[1732280764200,11.63382163,258.5,258.42,11.63382163]
[1732280764495,11.63382163,258.54,258.44,11.63382163]
[1732280764686,11.63382163,258.52,258.42,11.63382163]
[1732280765376,23.776884,258.51,258.43,2.7086]
[1732280766788,11.63382163,258.48,258.43,2.7086]
[1732280766985,23.776884,258.47,258.43,2.7086]
[1732280767788,11.63382163,258.46,258.43,2.7086]
[1732280768104,35.41070563,258.44,258.43,2.7086]
[1732280768604,35.41070563,258.44,258.43,1.9347]
[1732280768811,35.41070563,258.44,258.4,0.7739]
[1732280769107,2.5,258.54,258.4,0.7739]
[1732280769108,23.776884,258.41,258.4,0.7739]
[1732280769673,11.63382163,258.44,258.4,2.7088]
[1732280770097,11.63382163,258.42,258.4,2.7088]
[1732280770300,23.776884,258.41,258.4,2.7088]
[1732280770474,23.776884,258.41,258.4,1.9349]
[1732280771593,23.776884,258.41,258.37,0.774]
[1732280771794,11.63382163,258.4,258.37,0.774]
[1732280771990,23.776884,258.39,258.37,2.7092]
[1732280773704,11.63382163,258.38,258.37,2.7092]
[1732280774086,35.41070563,258.38,258.37,2.7092]
[1732280775500,23.776884,258.37,258.32,1.9355]
[1732280775702,11.63382163,258.35,258.32,1.9355]
[1732280776199,11.63382163,258.33,258.32,1.9355]
[1732280776383,11.63382163,258.35,258.32,1.9355]
[1732280776585,23.776884,258.34,258.32,1.9355]
[1732280777083,11.63382163,258.39,258.32,1.9355]
[1732280777297,23.776884,258.38,258.32,1.9355]
[1732280778302,11.63382163,258.35,258.32,1.9355]
[1732280778508,11.63382163,258.33,258.32,1.9355]
[1732280778684,35.41070563,258.33,258.32,1.9355]
[1732280778879,37.91070563,258.33,258.18,3.8732]
[1732280779095,23.776884,258.32,258.2,11.63382163]
[1732280779394,23.776884,258.29,258.2,11.63382163]
[1732280779711,11.63382163,258.3,258.2,11.63382163]
[1732280779907,11.63382163,258.3,258.21,2.7109]
[1732280780092,11.63382163,258.3,258.21,6.5837]
[1732280780595,11.63382163,258.32,258.24,11.63382163]
[1732280781397,11.63382163,258.34,258.25,15.1417]
[1732280782005,11.63382163,258.34,258.26,2.7104]
[1732280782806,11.63382163,258.34,258.26,22.7104]
[1732280783008,15.2372,258.45,258.28,11.63382163]
[1732280783009,11.63382163,258.36,258.28,11.63382163]
[1732280783191,11.63382163,258.4,258.31,20.0]
[1732280783392,11.63382163,258.4,258.24,8.6102]
[1732280783393,2.5,258.31,258.11,2.7119]
[1732280783708,156.8195,258.39,258.11,2.7119]
[1732280783709,11.63382163,258.18,258.11,2.7119]
[1732280783912,11.63382163,258.18,258.15,1.9368]
[1732280785000,3.8715,258.3,258.15,1.9368]
[1732280785001,11.63382163,258.16,258.15,1.9368]
[1732280785912,11.63382163,258.16,258.09,2.7122]
[1732280786091,11.63382163,258.14,258.09,2.7122]
[1732280786710,11.63382163,258.12,258.09,2.7122]
[1732280787101,11.63382163,258.1,258.09,2.7122]
[1732280787301,23.776884,258.09,257.95,15.2148]
[1732280787616,11.63382163,258.04,257.95,26.84862163]
[1732280788212,11.63382163,258.04,257.95,15.2148]
[1732280788518,11.63382163,258.04,257.96,22.7135]
[1732280788706,18.71547353,258.03,257.96,22.7135]
[1732280789616,18.71547353,258.09,258.0,18.71547353]
[1732280789821,18.71547353,258.07,257.98,18.71547353]
[1732280790501,18.71547353,258.09,258.0,18.71547353]
[1732280790703,18.71547353,258.11,258.02,18.71547353]
[1732280791520,18.71547353,258.11,258.03,2.7128]
[1732280791698,18.71547353,258.11,258.04,20.0]
[1732280792323,18.71547353,258.13,258.04,38.71547353]
[1732280792529,18.71547353,258.15,258.06,18.71547353]
[1732280793020,18.71547353,258.17,258.09,20.0]
[1732280793323,18.71547353,258.17,258.09,35.235]
[1732280793521,6.4063,258.26,258.1,21.42747353]
[1732280793522,18.71547353,258.19,258.1,21.42747353]
[1732280793706,18.71547353,258.21,258.13,20.0]
[1732280794015,18.71547353,258.23,258.14,18.71547353]
[1732280794626,18.71547353,258.23,258.15,20.0]
[1732280794921,18.71547353,258.19,258.15,20.0]
[1732280795615,18.71547353,258.21,258.11,38.71547353]
[1732280795843,18.71547353,258.21,258.12,6.5859]
[1732280796005,18.71547353,258.21,258.13,20.0]
[1732280797118,18.71547353,258.21,258.14,2.7116]
[1732280797625,18.71547353,258.19,258.14,2.7116]
[1732280799220,18.71547353,258.17,258.14,2.7116]
[1732280800234,3.8718,258.28,257.97,2.5]
[1732280800235,23.776884,258.14,257.97,6.5898]
[1732280800525,18.71547353,258.08,257.97,25.30527353]
[1732280801708,18.71547353,258.08,257.97,2.7134]
[1732280802021,18.71547353,258.08,257.97,6.5898]
[1732280803108,23.776884,258.13,257.97,6.5898]
[1732280803109,18.71547353,258.06,257.98,20.0]
[1732280803317,18.71547353,258.06,257.99,2.7132]
[1732280803533,18.71547353,258.06,257.99,6.5893]
[1732280804019,18.71547353,258.08,257.99,6.5893]
[1732280804217,18.71547353,258.1,258.02,18.71547353]
[1732280805123,18.71547353,258.1,258.03,6.5883]
[1732280806108,23.776884,258.17,258.04,20.0]
[1732280806327,18.71547353,258.12,258.04,20.0]
[1732280806530,18.71547353,258.1,258.04,20.0]
[1732280806912,18.71547353,258.12,258.04,20.0]
[1732280807306,18.71547353,258.12,258.05,6.5878]
[1732280807508,18.71547353,258.14,258.06,36.1137]
[1732280807926,18.71547353,258.14,258.06,42.276]
[1732280809409,18.71547353,258.1,258.07,6.5872]
[1732280810726,11.69121192,258.1,258.07,6.5872]
[1732280811232,11.69121192,258.12,258.07,6.5872]
[1732280812124,11.69121192,258.14,258.07,6.5872]
[1732280814918,11.69121192,258.12,258.07,6.5872]
[1732280815328,11.69121192,258.09,258.07,2.7123]
[1732280815533,11.69121192,258.11,258.07,2.7123]
[1732280816940,11.69121192,258.09,258.02,6.5885]
[1732280817125,11.69121192,258.07,258.02,2.7129]
[1732280817635,11.69121192,258.09,258.02,2.7129]
[1732280818039,11.69121192,258.09,258.02,6.5885]
[1732280818615,11.69121192,258.11,258.02,18.27971192]
[1732280818832,11.69121192,258.11,258.03,20.0]
[1732280819017,11.69121192,258.11,258.04,2.7126]
[1732280819220,11.69121192,258.13,258.04,18.27911192]
[1732280819432,11.69121192,258.15,258.05,20.0]
[1732280819840,11.69121192,258.15,258.06,11.69121192]
[1732280820319,11.69121192,258.15,258.07,20.0]
[1732280821215,11.69121192,258.15,258.08,2.7122]
[1732280821423,11.69121192,258.17,258.09,20.0]
[1732280822924,11.69121192,258.15,258.09,20.0]
[1732280823131,11.69121192,258.13,258.08,5.812]
[1732280824737,3.873,258.2,258.1,11.69121192]
[1732280824738,11.69121192,258.2,258.1,11.69121192]
[1732280824941,11.69121192,258.18,258.09,20.0]
[1732280825444,11.69121192,258.2,258.1,11.69121192]
[1732280825946,11.69121192,258.16,258.11,2.7119]
[1732280826188,3.8725,258.23,258.11,2.7119]
[1732280826189,11.69121192,258.12,258.11,2.7119]
[1732280826839,11.69121192,258.12,258.11,1.9371]
[1732280827428,11.69121192,258.12,258.11,2.7119]
[1732280827636,11.69121192,258.12,258.11,1.9371]
[1732280827828,23.776884,258.11,258.04,3.8753]
[1732280828034,11.69121192,258.08,258.04,3.8753]
[1732280828843,11.69121192,258.08,258.03,2.7128]
[1732280829235,23.776884,258.07,258.03,2.7128]
[1732280829955,11.69121192,258.08,258.03,1.9377]
[1732280830256,23.776884,258.09,258.03,1.9377]
[1732280830460,11.69121192,258.08,258.03,1.9377]
[1732280832247,11.69121192,258.1,258.03,1.9377]
[1732280833058,11.69121192,258.12,258.03,1.9377]
[1732280833442,11.69121192,258.1,258.03,1.9377]
[1732280833860,11.69121192,258.1,258.01,4.6509]
[1732280834069,11.69121192,258.1,258.01,24.6509]
[1732280834942,11.69121192,258.1,258.03,1.9377]
[1732280835141,11.69121192,258.12,258.03,21.9377]
[1732280836057,11.69121192,258.12,258.03,26.5883]
[1732280837852,11.69121192,258.1,258.03,26.5883]
[1732280838553,3.8736,258.16,258.03,6.5883]
[1732280838554,11.69121192,258.08,258.03,6.5883]
[1732280838760,11.69121192,258.08,258.03,2.7128]
[1732280839454,11.69121192,258.06,258.03,1.9377]
[1732280839750,11.69121192,258.08,258.03,1.9377]
[1732280839949,11.69121192,258.06,258.03,1.9377]
[1732280841642,11.69121192,258.04,258.03,1.9377]
[1732280844249,11.69121192,258.04,257.95,20.0]
[1732280844453,11.69121192,258.04,257.96,2.7135]
[1732280846075,11.69121192,258.02,257.96,2.7135]
[1732280848544,11.69121192,258.0,257.96,2.7135]
[1732280848745,11.69121192,257.98,257.96,2.7135]
[1732280849365,11.69121192,257.98,257.93,3.8768]
[1732280849748,11.69121192,258.05,257.93,3.8768]
[1732280849749,11.69121192,258.0,257.93,3.8768]
[1732280850448,11.69121192,257.98,257.9,2.7141]
[1732280850654,11.69121192,257.98,257.9,22.7141]
[1732280851255,11.69121192,257.96,257.9,2.7141]
[1732280851467,11.69121192,258.05,257.9,2.7141]
[1732280851468,11.69121192,257.94,257.9,2.7141]
[1732280851851,11.69121192,257.92,257.9,2.7141]
[1732280852263,11.69121192,257.92,257.9,1.9387]
[1732280852574,11.69121192,257.92,257.88,0.7755]
[1732280852763,11.69121192,257.9,257.88,0.7755]
[1732280853271,23.776884,257.98,257.85,1.939]
[1732280853475,11.69121192,257.9,257.85,1.939]
[1732280853673,11.69121192,257.92,257.85,1.939]
[1732280854355,11.69121192,257.94,257.85,13.63021192]
[1732280854559,11.69121192,257.98,257.87,11.69121192]
[1732280854872,11.69121192,257.98,257.89,11.69121192]
[1732280855565,11.69121192,257.98,257.9,6.5915]
[1732280855770,11.69121192,257.98,257.9,18.28271192]
[1732280855948,11.69121192,258.0,257.92,11.69121192]
[1732280856153,11.69121192,258.02,257.92,11.69121192]
[1732280856349,6.5156,258.09,257.94,11.69121192]
[1732280856549,11.69121192,258.05,257.97,20.0]
[1732280856751,11.69121192,258.09,257.99,20.0]
[1732280857253,11.69121192,258.09,258.0,14.40421192]
[1732280857581,11.69121192,258.09,258.01,35.8585]
[1732280857756,11.69121192,258.11,258.02,11.69121192]
[1732280858163,11.69121192,258.11,258.03,20.0]
[1732280859375,11.69121192,258.13,258.05,20.0]
[1732280861185,11.69121192,258.17,258.07,20.0]